Cogmind - Beta 11.1 @@@ ROGUE MODE // 2022.09.30 @ 20:15:57 Player: deadnoob Result: Self-destructed Performance ------------- Evolutions (6) 3000 Regions Visited (23) 4600 Robots Destroyed (128) 640 Value Destroyed (3772) 3772 Prototype IDs (28) 560 Alien Tech Used (0) 0 Bonus (1334) 1334 TOTAL SCORE: 13906 Bonus ------- High Alert Combat Kills 135 Follower Combat Kills 187 Met Data Miner 300 Met Warlord at Base 500 MAIN.C Attacked Warlord 500 Friendly Fire -288 Cogmind --------- Core Integrity 933/1150 Matter 144/300 Energy 36/100 System Corruption 2% Temperature Cool (0) Movement Core (250) Ox4 Location -4/Factory Parts ------- > --- POWER (2) -------- (None) > --- PROPULSION (6) --- Improved Antigrav System Improved Gyrokinetic Inverter > --- UTILITY (9) ------ Improved Signal Interpreter Improved Signal Interpreter Advanced Signal Interpreter Quantum Capacitor Hacking Suite Makeshift Hacking Suite Improved Hacking Suite > --- WEAPON (2) ------- KE Penetrator KE Penetrator > --- INVENTORY (5) ---- Light Angular Momentum Engine Improved Reaction Control System Authchip [Armor] Dimensional Node Initializer Matter Neutralizer Peak State ------------ > --- POWER ------------ Improved Deuterium Engine > --- PROPULSION ------- Improved VTOL Module Improved VTOL Module Biomechanical Wings > --- UTILITY ---------- Medium Storage Unit Advanced Weight Redist. System Advanced Sensor Array Advanced Signal Interpreter Makeshift Hacking Suite Improved Hacking Suite Improved Hacking Suite Improved Hacking Suite Makeshift System Shield > --- WEAPON ----------- Vortex Cannon Scythe > --- INVENTORY -------- Improved Deuterium Engine Makeshift Power Source Improved Signal Interpreter Improved Reaction Control System Improved Light Armor Plating Improved Shield Generator Authchip [Armor] Matter Neutralizer RU-N14's Throwing Claymores RU-N14's Throwing Claymores [Rating: 70] Favorites ----------- Power Light Deuterium Engine Engine Light Deuterium Engine Power Core Enhanced Nuclear Core Propulsion Improved VTOL Module Treads Light Treads Leg Aluminum Leg Wheel Compact Wheel Hover Unit Improved Gyrokinetic Inverter Flight Unit Improved VTOL Module Utility Hacking Suite Device Improved Sensor Array Storage Medium Storage Unit Processor Improved Signal Interpreter Hackware Hacking Suite Protection Light Armor Plating Weapon Scythe Energy Gun Medium Laser Energy Cannon Advanced Plasma Cannon Ballistic Gun Assault Rifle Launcher Grenade Launcher Special Weapon RU-N14's Throwing Claymores Slashing Weapon Scythe Special Melee Weapon Datajack Build | -11 -10 -10 -10 -9 -8 -8 -7 -7 -7 -7 -7 -7 -6 -6 -6 -6 -6 -5 -5 -5 -5 -4 -4 ------- Run | Scr Mat Min Exi Min Mat Sto Fac Was Fac Low Low Dat Pro Fac Low Low Zio Pro Fac Upp War Pro Fac Slots Evolved 12 | . . . . . 4 . 2 . . . . . . 2 . . . . 2 . . . 2 Power 1 | . . . . . . . . . . . . . . . . . . . . . . . 1 Propulsion 4 | . . . . . 1 . 1 . . . . . . 1 . . . . . . . . 1 Utility 7 | . . . . . 3 . 1 . . . . . . 1 . . . . 2 . . . . Weapon . | . . . . . . . . . . . . . . . . . . . . . . . . Parts Attached 255 | . 8 6 . 11 50 30 23 . 27 12 2 . 1 31 5 . 5 4 9 2 2 12 15 Power 23 | . . 2 . 1 3 1 1 . 3 . . . . 5 . . . 1 . 2 . 3 1 Engine 22 | . . 2 . 1 3 1 1 . 2 . . . . 5 . . . 1 . 2 . 3 1 Core 1 | . . . . . . . . . 1 . . . . . . . . . . . . . . Reactor . | . . . . . . . . . . . . . . . . . . . . . . . . Propulsion 48 | . 2 . . 4 18 11 3 . 3 . . . . 4 . . . . . . . . 3 Treads 17 | . 2 . . 3 7 5 . . . . . . . . . . . . . . . . . Leg 12 | . . . . . 11 1 . . . . . . . . . . . . . . . . . Wheel 1 | . . . . 1 . . . . . . . . . . . . . . . . . . . Hover 3 | . . . . . . . . . . . . . . . . . . . . . . . 3 Flight 15 | . . . . . . 5 3 . 3 . . . . 4 . . . . . . . . . Utility 108 | . 2 1 . 2 18 11 15 . 15 3 1 . . 16 3 . 1 2 7 . . 5 6 Device 51 | . . . . . 5 4 11 . 11 2 1 . . 4 3 . . 1 3 . . 2 4 Storage 5 | . 1 . . . 3 1 . . . . . . . . . . . . . . . . . Processor 13 | . . . . . 6 . 2 . . . . . . 3 . . . . . . . 1 1 Hackware 18 | . . . . . . 2 2 . 3 . . . . 6 . . 1 . 3 . . . 1 Protection 21 | . 1 1 . 2 4 4 . . 1 1 . . . 3 . . . 1 1 . . 2 . Artifact . | . . . . . . . . . . . . . . . . . . . . . . . . Weapon 76 | . 4 3 . 4 11 7 4 . 6 9 1 . 1 6 2 . 4 1 2 . 2 4 5 Energy Gun 10 | . 1 . . . 3 3 . . 1 . . . . . . . . . . . 1 1 . Energy Cannon 21 | . . . . . . 1 . . 3 3 1 . 1 3 1 . . 1 1 . 1 2 3 Ballistic Gun 15 | . 1 2 . 2 7 . 1 . . . . . . . . . . . . . . . 2 Ballistic Cannon . | . . . . . . . . . . . . . . . . . . . . . . . . Launcher 9 | . 2 1 . 2 . . 2 . . 2 . . . . . . . . . . . . . Special Weapon 2 | . . . . . . . . . . . . . . . . . 1 . 1 . . . . Impact Weapon . | . . . . . . . . . . . . . . . . . . . . . . . . Slashing Weapon 18 | . . . . . . 3 1 . 2 4 . . . 3 1 . 3 . . . . 1 . Piercing Weapon . | . . . . . . . . . . . . . . . . . . . . . . . . Special Melee Weapon 1 | . . . . . 1 . . . . . . . . . . . . . . . . . . Unidentified Prototypes 7 | . . . . . 1 2 . . 1 . . . . . . . 1 . . . 2 . . Parts Lost 58 | . . . . 8 19 6 . . 4 . . . . 5 . . . 2 1 . . 11 2 Power 8 | . . . . 1 2 . . . 1 . . . . 1 . . . 1 . . . 2 . Propulsion 21 | . . . . 2 8 3 . . 2 . . . . 2 . . . . 1 . . 2 1 Utility 19 | . . . . 2 5 1 . . 1 . . . . 2 . . . 1 . . . 6 1 Weapon 10 | . . . . 3 4 2 . . . . . . . . . . . . . . . 1 . Highest Loss Streak 10 | . . . . 8 5 4 . . 3 . . . . 2 . . . 1 1 . . 10 1 To Critical Strikes . | . . . . . . . . . . . . . . . . . . . . . . . . Average Slot Usage (%) 91 | . 91 100 100 98 97 90 98 100 96 70 69 69 71 89 91 93 93 87 80 82 82 70 38 Engine 8 | . 14 14 14 14 8 9 6 7 6 7 7 7 7 6 6 6 6 6 5 5 5 4 . Treads 10 | . 26 28 28 26 12 17 . . . . . . . . . . . . . . . . . Leg 2 | . 1 . . . 13 2 . . . . . . . . . . . . . . . . . Flight 13 | . . . . . . . 29 30 29 30 30 30 30 32 26 26 26 26 19 17 17 15 2 Device 5 | . . . . . 7 2 7 7 8 7 7 7 7 6 13 13 13 12 12 11 11 8 5 Storage 8 | . 14 14 14 14 9 9 7 7 7 7 7 7 7 6 6 6 6 6 5 5 5 4 . Processor 8 | . . . . . 15 17 8 7 7 7 7 7 7 13 6 6 6 6 5 5 5 5 14 Hackware 9 | . . . . . . 8 21 23 18 7 7 7 7 8 20 20 20 20 22 29 29 25 10 Protection 6 | . 5 14 14 14 12 7 . . . . . . . 5 . . . . . . . . . Energy Gun 5 | . 14 14 14 3 4 5 5 7 7 . . . . . . . . . . . . . . Ballistic Gun 5 | . 10 14 14 24 13 1 . . . . . . . . . . . . . . . . . Slashing Weapon 2 | . . . . . . 4 6 7 6 . . . . 5 5 6 6 6 5 5 5 2 . Naked Turns . | . . . . . . . . . . . . . . . . . . . . . . . . Heaviest Build 104 | 14 31 35 35 35 104 101 24 19 21 34 21 21 30 28 31 31 31 31 30 23 23 23 11 Greatest Support 60 | 20 40 40 40 40 60 60 21 21 21 21 21 21 21 31 31 31 31 31 31 25 25 25 24 Greatest Overweight (x) 33 | . 1 . . 1 6 33 1 . . 1 . . 1 1 . . . . . . . . 3 Average Overweight (x) . | . . . . . 1 2 . . . . . . . . . . . . . . . . . Largest Inventory Capacity 25 | . 15 15 15 15 25 25 10 10 10 10 10 10 10 10 10 10 10 10 10 10 10 10 5 Average Capacity 14 | . 14 15 15 15 21 24 10 10 10 10 10 10 10 10 10 10 10 10 10 10 10 9 5 Most Carried 25 | . 10 15 15 15 25 25 10 10 10 10 10 10 10 10 10 10 10 10 10 10 10 10 5 Average Carried 13 | . 8 14 15 10 20 23 9 9 9 9 9 10 9 9 9 9 9 9 9 9 9 8 4 Final Capacity 25 | 8 15 15 15 15 25 10 10 10 10 10 10 10 10 10 10 10 10 10 10 10 10 5 5 Final Carried 24 | 6 10 15 15 11 24 10 10 10 10 8 10 10 10 9 10 10 10 10 9 10 10 5 5 Class Distribution -------------------- 31% | Hacker-Sprinter 28% | Mutant 22% | Scavenger-Mutant 11% | Sprinter 3% | Hacker-Mutant Dominant Class ---------------- Mutant | -10/Materials Mutant | -10/Mines Mutant | -10/Exiles Mutant | -9/Mines Scavenger-Mutant | -8/Materials Scavenger-Mutant | -8/Storage Hacker-Sprinter | -7/Factory Hacker-Sprinter | -7/Waste Hacker-Sprinter | -7/Factory Sprinter | -7/Lower Caves Sprinter | -7/Lower Caves Sprinter | -7/Data Miner Sprinter | -6/Proximity Caves Sprinter | -6/Factory Hacker-Sprinter | -6/Lower Caves Hacker-Sprinter | -6/Lower Caves Hacker-Sprinter | -6/Zion Hacker-Sprinter | -5/Proximity Caves Hacker-Sprinter | -5/Factory Hacker-Sprinter | -5/Upper Caves Hacker-Sprinter | -5/Warlord Hacker-Sprinter | -4/Proximity Caves Hacker-Mutant | -4/Factory Resources | -11 -10 -10 -10 -9 -8 -8 -7 -7 -7 -7 -7 -7 -6 -6 -6 -6 -6 -5 -5 -5 -5 -4 -4 ----------- Run | Scr Mat Min Exi Min Mat Sto Fac Was Fac Low Low Dat Pro Fac Low Low Zio Pro Fac Upp War Pro Fac Matter Collected 3720 | 200 159 178 . 197 1208 272 198 . 423 170 50 . . 126 170 37 32 70 35 43 57 95 . Remotely 239 | . . . . . 239 . . . . . . . . . . . . . . . . . . Salvage Created 4783 | . 489 70 . 89 2223 896 225 . 266 115 . . . 151 80 . . 44 93 28 . . 14 Parts 303 | . 34 5 . 3 125 42 26 . 19 8 . . . 21 2 . . 4 9 . . . 5 Haulers Intercepted 5 | . . . . . 4 1 . . . . . . . . . . . . . . . . . Recyclers Shooed 5 | . . . . . 4 1 . . . . . . . . . . . . . . . . . Parts Field Recycled . | . . . . . . . . . . . . . . . . . . . . . . . . Retrieved Matter . | . . . . . . . . . . . . . . . . . . . . . . . . Parts Self-Destructed 13 | . . . . . . . . . . 3 . . 2 . . . . 8 . . . . . Prevented 4 | . . . . . . . . . . . . . . . . . . 2 . . . 2 . Kills | -11 -10 -10 -10 -9 -8 -8 -7 -7 -7 -7 -7 -7 -6 -6 -6 -6 -6 -5 -5 -5 -5 -4 -4 ------- Run | Scr Mat Min Exi Min Mat Sto Fac Was Fac Low Low Dat Pro Fac Low Low Zio Pro Fac Upp War Pro Fac Combat Hostiles Destroyed 87 | . 12 4 . 10 32 13 10 . 1 3 . . . 1 . . . . 1 . . . . Melee 6 | . . . . . . 4 . . 1 . . . . 1 . . . . . . . . . Guns 51 | . 12 1 . 2 30 6 . . . . . . . . . . . . . . . . . Cannons 4 | . . . . . . 3 . . . . . . . . . . . . 1 . . . . AOE 26 | . . 3 . 8 2 . 10 . . 3 . . . . . . . . . . . . . Classes Destroyed 19 | . 6 . . 2 7 1 . . . . . . . 1 1 . . 1 . . . . . Worker 10 | . 2 . . . 2 3 2 . 1 . . . . . . . . . . . . . . Builder 2 | . . . . . 1 . . . . . . . . . . . . . . . . . 1 Tunneler 4 | . . . . . 2 . . . 2 . . . . . . . . . . . . . . Hauler 5 | . . . . . 4 1 . . . . . . . . . . . . . . . . . Recycler 7 | . 1 . . . 3 1 . . 2 . . . . . . . . . . . . . . Minesweeper 1 | . . . . . . . . . . . . . . . . . . 1 . . . . . Mechanic 1 | . 1 . . . . . . . . . . . . . . . . . . . . . . Operator 1 | . . . . . . 1 . . . . . . . . . . . . . . . . . Watcher 16 | . 1 . . . 3 1 3 . 1 . . . . 4 . . . 1 2 . . . . Swarmer 23 | . 6 3 . . . . 10 . . 3 . . . . . . . . 1 . . . . Grunt 39 | . 6 1 . 2 21 8 . . 1 . . . . . . . . . . . . . . Brawler 1 | . . . . . 1 . . . . . . . . . . . . . . . . . . Duelist 1 | . . . . . 1 . . . . . . . . . . . . . . . . . . Sentry 9 | . . . . . 6 3 . . . . . . . . . . . . . . . . . Demolisher 1 | . . . . 1 . . . . . . . . . . . . . . . . . . . Hunter 5 | . . . . . 3 2 . . . . . . . . . . . . . . . . . Programmer 1 | . . . . . . . . . . . . . . 1 . . . . . . . . . Decomposer 2 | . . . . . . . . . . 1 . . . . . . . . . 1 . . . Packrat 1 | . . . . . . . . . . . . . . . 1 . . . . . . . . Samaritan 1 | . . . . . . . . . . . . . . . 1 . . . . . . . . Assembled 7 | . . . . 7 . . . . . . . . . . . . . . . . . . . Thug 1 | . . . . . . . . . . 1 . . . . . . . . . . . . . Best Kill Streak 9 | . 6 3 . 9 7 4 7 . 2 3 . . . 1 . . . 1 1 . . . 1 Combat Bots Only 9 | . 3 3 . 9 5 3 6 . 1 3 . . . 1 . . . . 1 . . . . Max Kills in Single Turn 7 | . 1 3 . 3 2 1 7 . 1 2 . . . 1 1 . . 1 1 1 . . 1 Gunslinging 1 | . . . . . 1 . . . . . . . . . . . . . . . . . . Exploded 6 | . . 3 . 3 1 . 6 . . 2 . . . . . . . . . . . . . Melee 1 | . . . . . . 1 . . 1 . . . . 1 . . . . . . . . . Uniques/NPCs Destroyed . | . . . . . . . . . . . . . . . . . . . . . . . . Combat | -11 -10 -10 -10 -9 -8 -8 -7 -7 -7 -7 -7 -7 -6 -6 -6 -6 -6 -5 -5 -5 -5 -4 -4 -------- Run | Scr Mat Min Exi Min Mat Sto Fac Was Fac Low Low Dat Pro Fac Low Low Zio Pro Fac Upp War Pro Fac Damage Taken 7432 | . 285 90 . 1079 2122 997 65 . 734 41 . . . 507 . 22 . 142 195 . . 710 443 Core 1476 | . 47 19 . 135 196 157 19 . 162 . . . . 121 . 6 . 76 53 . . 268 217 Absorbed by Shields 55 | . . . . . 4 28 . . 8 . . . . . . . . . 10 . . 5 . Redirected to Shielding 29 | . 6 2 . . 21 . . . . . . . . . . . . . . . . . . Regen/Repaired (Parts) 411 | . . . . . . . 31 . 198 . . . . 182 . . . . . . . . . Core Remaining (%) 61 | 100 . . . 19 . 35 . . . . . . 74 . . . . 76 . . . 67 . Volleys Fired 336 | . 36 6 . 20 150 41 2 . 6 10 5 . 9 19 1 . . 14 2 . . 8 7 Largest 2 | . 2 2 . 2 2 2 1 . 2 1 1 . 1 1 1 . . 1 1 . . 1 2 Hottest 140 | . 70 73 . 73 79 140 39 . 128 98 98 . 98 98 98 . . 98 105 . . 105 105 Shots Fired 566 | . 70 11 . 34 298 60 2 . 12 10 5 . 11 19 1 . . 14 2 . . 8 9 Gun 458 | . 68 10 . 29 298 37 . . 6 . . . . . . . . . . . . 6 4 Cannon 94 | . . . . . . 23 . . 6 7 5 . 11 19 1 . . 14 1 . . 2 5 Launcher 13 | . 2 1 . 5 . . 2 . . 3 . . . . . . . . . . . . . Special 1 | . . . . . . . . . . . . . . . . . . . 1 . . . . Kinetic 298 | . 34 5 . 19 225 11 . . . . . . . . . . . . . . . . 4 Thermal 213 | . 34 5 . 10 41 46 . . 12 7 5 . 11 19 1 . . 14 1 . . 2 5 Explosive 14 | . 2 1 . 5 . . 2 . . 3 . . . . . . . . 1 . . . . Electromagnetic 35 | . . . . . 32 3 . . . . . . . . . . . . . . . . . Entropic 6 | . . . . . . . . . . . . . . . . . . . . . . 6 . Robot Hit Streak 22 | . 11 4 . 14 22 20 . . . . . . . 1 . . . . 1 . . . 2 Robot Miss Streak 6 | . 2 1 . 6 4 2 . . . . . . 1 1 . . . . . . . . 2 Penetration Max . | . . . . . . . . . . . . . . . . . . . . . . . . Secondary Targets 4 | . . . . . 4 . . . . . . . . . . . . . . . . . . Max Gunslinging Chain 1 | . . . . . 1 . . . . . . . . . . . . . . . . . . Shots Hit Robots 407 | . 47 7 . 20 220 62 10 . 11 4 . . . 9 2 . . 4 6 1 . . 4 Core Hits 223 | . 25 5 . 22 104 29 16 . 4 6 . . . 4 . . . 2 3 1 . . 2 Critical Kills . | . . . . . . . . . . . . . . . . . . . . . . . . Critical Parts Destroyed . | . . . . . . . . . . . . . . . . . . . . . . . . Critical Strikes 4 | . 1 . . . 3 . . . . . . . . . . . . . . . . . . Burn 4 | . 1 . . . 3 . . . . . . . . . . . . . . . . . . Melee Attacks 202 | . . . . . . 18 51 . 51 5 . . . 36 3 . 3 11 21 1 . 2 . Impact . | . . . . . . . . . . . . . . . . . . . . . . . . Slashing 202 | . . . . . . 18 51 . 51 5 . . . 36 3 . 3 11 21 1 . 2 . Piercing . | . . . . . . . . . . . . . . . . . . . . . . . . Sneak Attacks 17 | . . . . . . 2 . . 6 4 . . . 1 2 . . 1 . 1 . . . Combat Hostiles . | . . . . . . . . . . . . . . . . . . . . . . . . Follow-up Attacks . | . . . . . . . . . . . . . . . . . . . . . . . . Damage Inflicted 9892 | . 670 248 . 767 3457 1494 1108 . 588 439 . . . 378 138 . . 185 216 67 . . 137 Guns 4823 | . 649 104 . 237 3264 507 . . . . . . . . . . . . . . . . 62 Cannons 486 | . . . . . . 379 . . . . . . . 32 . . . . . . . . 75 Explosions 1773 | . . 144 . 530 170 . 745 . . 184 . . . . . . . . . . . . . Melee 2699 | . . . . . . 574 363 . 588 255 . . . 346 138 . . 185 183 67 . . . Ramming 78 | . 21 . . . 23 34 . . . . . . . . . . . . . . . . . Kinetic 3147 | . 319 65 . 175 2363 163 . . . . . . . . . . . . . . . . 62 Thermal 2011 | . 330 39 . 62 693 674 106 . . . . . . 32 . . . . . . . . 75 Explosive 1497 | . . 144 . 530 . . 639 . . 184 . . . . . . . . . . . . . Electromagnetic 427 | . . . . . 378 49 . . . . . . . . . . . . . . . . . Impact . | . . . . . . . . . . . . . . . . . . . . . . . . Slashing 2732 | . . . . . . 574 363 . 588 255 . . . 346 138 . . 185 216 67 . . . Piercing . | . . . . . . . . . . . . . . . . . . . . . . . . Highest Corruption 6 | . 2 2 2 5 3 3 . 6 6 4 4 4 4 2 2 2 2 . . . . . 2 Average Corruption 2 | . 2 2 2 4 2 3 . 6 3 4 4 4 4 1 2 2 2 . . . . . 1 Corruption Purged 5 | . . . . . . . . . 5 . . . . . . . . . . . . . . Corruption Blocked . | . . . . . . . . . . . . . . . . . . . . . . . . Effects 142 | . 11 18 5 7 31 24 . . 27 3 1 . 4 7 3 1 . . . . . . . Message Errors 37 | . 1 4 2 1 15 6 . . 5 . 1 . . 1 1 . . . . . . . . Matter Fused 31 | . 2 5 2 1 6 4 . . 8 1 . . . 1 1 . . . . . . . . Heat Flow Errors 17 | . 3 1 1 . 3 1 . . 2 1 . . 1 2 1 1 . . . . . . . Energy Discharges 15 | . 1 2 . 2 3 4 . . 3 . . . . . . . . . . . . . . Parts Rejected 5 | . . . . 1 . 2 . . 1 . . . . 1 . . . . . . . . . Data Loss (minor) 18 | . 3 3 . 2 2 4 . . 2 1 . . 1 . . . . . . . . . . Data Loss (major) 8 | . 1 2 . . . . . . 4 . . . . 1 . . . . . . . . . Misfires 4 | . . . . . . 2 . . . . . . 2 . . . . . . . . . . Alerts 5 | . . 1 . . . 1 . . 2 . . . . 1 . . . . . . . . . Weapon Failures 2 | . . . . . 2 . . . . . . . . . . . . . . . . . . Overload Shots . | . . . . . . . . . . . . . . . . . . . . . . . . Overflow Damage 516 | . . . . 1 14 50 60 . 167 14 . . . 57 96 . . 39 18 . . . . Projectiles 2 | . . . . . . . . . . . . . . 2 . . . . . . . . . Explosions 51 | . . . . 1 14 . 36 . . . . . . . . . . . . . . . . Melee 463 | . . . . . . 50 24 . 167 14 . . . 55 96 . . 39 18 . . . . Knockbacks 1 | . . . . . 1 . . . . . . . . . . . . . . . . . . Impact 1 | . . . . . 1 . . . . . . . . . . . . . . . . . . Kinetic . | . . . . . . . . . . . . . . . . . . . . . . . . Secondary . | . . . . . . . . . . . . . . . . . . . . . . . . Self-Inflicted Damage 206 | . 18 14 . 135 39 . . . . . . . . . . . . . . . . . . Shots 7 | . 1 1 . 4 1 . . . . . . . . . . . . . . . . . . Rammed 7 | . 2 . . . 3 2 . . . . . . . . . . . . . . . . . Targets Rammed 10 | . 3 . . . 5 2 . . . . . . . . . . . . . . . . . Kicked 2 | . . . . . 2 . . . . . . . . . . . . . . . . . . Crushed 1 | . 1 . . . . . . . . . . . . . . . . . . . . . . Highest Temperature 536 | . 124 156 280 216 265 487 1 . 222 294 270 . 536 257 232 101 . 244 46 . . 42 60 Average Temperature 87 | . 38 82 147 130 28 113 1 . 69 114 141 . 245 67 84 56 . 104 30 . . 20 25 Received Heat Transfer 2168 | . 93 36 . 123 1042 537 15 . 84 . . . . 129 . . . 18 40 . . 39 12 Effects 12 | . . . . . . 5 . . . 2 . . 5 . . . . . . . . . . Shutdowns 3 | . . . . . . 2 . . . . . . 1 . . . . . . . . . . Energy Bleed 1 | . . . . . . 1 . . . . . . . . . . . . . . . . . Interference 4 | . . . . . . . . . . 2 . . 2 . . . . . . . . . . Damage (minor) 1 | . . . . . . 1 . . . . . . . . . . . . . . . . . Damage (major) 3 | . . . . . . 1 . . . . . . 2 . . . . . . . . . . Siege Activations . | . . . . . . . . . . . . . . . . . . . . . . . . Robots Corrupted . | . . . . . . . . . . . . . . . . . . . . . . . . Combat Hostiles . | . . . . . . . . . . . . . . . . . . . . . . . . Parts Fried 1 | . . . . . 1 . . . . . . . . . . . . . . . . . . Impact Corruptions . | . . . . . . . . . . . . . . . . . . . . . . . . Robots Melted . | . . . . . . . . . . . . . . . . . . . . . . . . Combat Hostiles . | . . . . . . . . . . . . . . . . . . . . . . . . Parts Melted 5 | . 1 . . . 1 3 . . . . . . . . . . . . . . . . . Heat Transferred 4481 | . 999 111 . 185 1704 1258 100 . . . . . . 50 . . . . . . . . 74 Parts Sabotaged . | . . . . . . . . . . . . . . . . . . . . . . . . Parts Stolen . | . . . . . . . . . . . . . . . . . . . . . . . . Parts Stripped . | . . . . . . . . . . . . . . . . . . . . . . . . Power Chain Reactions 2 | . . . . . 2 . . . . . . . . . . . . . . . . . . Missiles Intercepted . | . . . . . . . . . . . . . . . . . . . . . . . . Alert | -11 -10 -10 -10 -9 -8 -8 -7 -7 -7 -7 -7 -7 -6 -6 -6 -6 -6 -5 -5 -5 -5 -4 -4 ------- Run | Scr Mat Min Exi Min Mat Sto Fac Was Fac Low Low Dat Pro Fac Low Low Zio Pro Fac Upp War Pro Fac Peak Influence 700 | . 241 205 . 122 490 415 700 130 428 . . . . 295 . . . . 371 . . . 212 Initial 180 | . . 93 . . 47 180 89 115 91 . . . . 46 . . . . 31 . . . 107 Average 198 | . 65 70 . 99 288 292 336 120 158 . . . . 157 . . . . 171 . . . 157 Maximum Alert Level 3 | . 1 1 . . 2 2 3 . 2 . . . . 1 . . . . 1 . . . 1 Low Security (%) 50 | . 93 67 . 100 32 13 3 100 69 . . . . 58 . . . . 55 . . . 76 Level 1 40 | . 6 32 . . 39 79 72 . 27 . . . . 41 . . . . 44 . . . 23 Level 2 9 | . . . . . 28 6 23 . 3 . . . . . . . . . . . . . . Level 3 . | . . . . . . . . . . . . . . . . . . . . . . . . Level 4 . | . . . . . . . . . . . . . . . . . . . . . . . . Level 5 . | . . . . . . . . . . . . . . . . . . . . . . . . High Security . | . . . . . . . . . . . . . . . . . . . . . . . . Max Security . | . . . . . . . . . . . . . . . . . . . . . . . . Squads Dispatched 38 | . 3 . . . 7 3 7 . 6 . . . . 7 . . . . 4 . . . 1 Investigation 23 | . 2 . . . 3 . 6 . 5 . . . . 5 . . . . 2 . . . . Extermination 4 | . . . . . . . . . 1 . . . . 1 . . . . 1 . . . 1 Reinforcement 11 | . 1 . . . 4 3 1 . . . . . . 1 . . . . 1 . . . . Assault . | . . . . . . . . . . . . . . . . . . . . . . . . Garrison . | . . . . . . . . . . . . . . . . . . . . . . . . Intercept . | . . . . . . . . . . . . . . . . . . . . . . . . Searches Triggered 1 | . . . . . . . 1 . . . . . . . . . . . . . . . . Data Miner Redirects 4 | . . . . . . . . . . . . . . 3 . . . . 1 . . . . Construction Impeded . | . . . . . . . . . . . . . . . . . . . . . . . . Haulers Reinforced . | . . . . . . . . . . . . . . . . . . . . . . . . Active Scanning Responses . | . . . . . . . . . . . . . . . . . . . . . . . . Cargo Convoy Interrupts . | . . . . . . . . . . . . . . . . . . . . . . . . Stealth | -11 -10 -10 -10 -9 -8 -8 -7 -7 -7 -7 -7 -7 -6 -6 -6 -6 -6 -5 -5 -5 -5 -4 -4 --------- Run | Scr Mat Min Exi Min Mat Sto Fac Was Fac Low Low Dat Pro Fac Low Low Zio Pro Fac Upp War Pro Fac Distress Signals 16 | . 1 . . 1 6 1 3 . . . . . . 1 . . . 1 2 . . . . Communications Jammed 5 | . . . . . . . 5 . . . . . . . . . . . . . . . . Distress Signals 5 | . . . . . . . 5 . . . . . . . . . . . . . . . . Times Spotted 301 | . 22 4 . 16 61 19 38 6 32 3 . . 4 37 . 1 . 18 18 . . 18 4 Peak Tracking Total 14 | . 4 3 . 12 5 3 8 6 13 3 . . 3 14 . 1 . 7 8 . . 11 5 Tactical Retreats 41 | . . . . 1 2 . 7 . 7 1 . . . 8 . . . 5 5 . . 3 2 Traps | -11 -10 -10 -10 -9 -8 -8 -7 -7 -7 -7 -7 -7 -6 -6 -6 -6 -6 -5 -5 -5 -5 -4 -4 ------- Run | Scr Mat Min Exi Min Mat Sto Fac Was Fac Low Low Dat Pro Fac Low Low Zio Pro Fac Upp War Pro Fac Traps Triggered 9 | . 1 . . . 4 1 1 . 2 . . . . . . . . . . . . . . Indirectly . | . . . . . . . . . . . . . . . . . . . . . . . . Trap Hack Attempts . | . . . . . . . . . . . . . . . . . . . . . . . . Triggered . | . . . . . . . . . . . . . . . . . . . . . . . . Disarmed . | . . . . . . . . . . . . . . . . . . . . . . . . Reprogrammed . | . . . . . . . . . . . . . . . . . . . . . . . . Reused . | . . . . . . . . . . . . . . . . . . . . . . . . Traps Extracted . | . . . . . . . . . . . . . . . . . . . . . . . . Installed . | . . . . . . . . . . . . . . . . . . . . . . . . Triggered 7 | . . . . . . . . . . . . . . . 1 . . 1 . . 3 2 . Machines | -11 -10 -10 -10 -9 -8 -8 -7 -7 -7 -7 -7 -7 -6 -6 -6 -6 -6 -5 -5 -5 -5 -4 -4 ---------- Run | Scr Mat Min Exi Min Mat Sto Fac Was Fac Low Low Dat Pro Fac Low Low Zio Pro Fac Upp War Pro Fac Machines Disabled 15 | . . 1 . . 2 1 3 . 1 . . . . . . . . 2 4 . . 1 . Max in Single Turn 4 | . . 1 . . 1 1 3 . 1 . . . . . . . . 1 4 . . 1 . Garrison Access 7 | . . . . . . 1 3 . 1 . . . . 2 . . . . . . . . . Machines Sabotaged . | . . . . . . . . . . . . . . . . . . . . . . . . Garrisons Compromised . | . . . . . . . . . . . . . . . . . . . . . . . . Overloaded Fab Kills . | . . . . . . . . . . . . . . . . . . . . . . . . Hacking | -11 -10 -10 -10 -9 -8 -8 -7 -7 -7 -7 -7 -7 -6 -6 -6 -6 -6 -5 -5 -5 -5 -4 -4 --------- Run | Scr Mat Min Exi Min Mat Sto Fac Was Fac Low Low Dat Pro Fac Low Low Zio Pro Fac Upp War Pro Fac Machines Accessed 90 | . 7 . 1 . 3 6 25 . 16 . . 4 . 17 . 1 . 1 2 . 2 1 4 Terminals 48 | . 5 . . . 1 5 14 . 8 . . . . 9 . . . 1 1 . . . 4 Fabricators 10 | . . . . . . . 3 . 3 . . . . 3 . . . . 1 . . . . Repair Stations 6 | . . . . . 1 . 1 . 2 . . . . 2 . . . . . . . . . Recycling Units 6 | . 2 . . . 1 . 2 . 1 . . . . . . . . . . . . . . Scanalyzers 3 | . . . . . . . 2 . 1 . . . . . . . . . . . . . . Garrison Access 8 | . . . . . . 1 3 . 1 . . . . 3 . . . . . . . . . Total Hacks 279 | . 13 . 1 . 8 11 88 . 54 . . 29 . 52 . 1 . 1 8 . 2 1 10 Successful 190 | . 9 . 1 . 4 8 59 . 37 . . 29 . 29 . 1 . 1 6 . 2 1 3 Failed 87 | . 3 . . . 4 3 28 . 17 . . . . 23 . . . . 2 . . . 7 Catastrophic 13 | . . . . . . . 5 . 3 . . . . 2 . . . . . . . . 3 Database Lockouts 2 | . 1 . . . . . 1 . . . . . . . . . . . . . . . . Manual 131 | . 9 . . . 6 7 49 . 24 . . . . 24 . . . . 3 . . . 9 Terminals 156 | . 11 . . . 5 10 62 . 24 . . . . 29 . . . 1 4 . . . 10 Fabricators 34 | . . . . . . . 9 . 9 . . . . 12 . . . . 4 . . . . Repair Stations 24 | . . . . . 2 . 5 . 11 . . . . 6 . . . . . . . . . Recycling Units 9 | . 2 . . . 1 . 2 . 4 . . . . . . . . . . . . . . Scanalyzers 11 | . . . . . . . 7 . 4 . . . . . . . . . . . . . . Garrison Access 11 | . . . . . . 1 3 . 2 . . . . 5 . . . . . . . . . Terminal Hacks 85 | . 5 . 1 . . 6 24 . 6 . . 29 . 6 . 1 . 1 2 . 2 1 1 Record 13 | . . . 1 . . . . . . . . 11 . . . . . . . . . 1 . Part Schematic 14 | . . . . . . . 2 . . . . 10 . 2 . . . . . . . . . Robot Schematic 5 | . . . . . . . . . . . . 5 . . . . . . . . . . . Robot Analysis 7 | . 2 . . . . 1 3 . 1 . . . . . . . . . . . . . . Prototype ID Bank 8 | . 1 . . . . . 4 . . . . 3 . . . . . . . . . . . Open Door 7 | . . . . . . 3 . . . . . . . . . 1 . 1 . . 2 . . Branch Access Points 3 | . . . . . . . 1 . 1 . . . . . . . . . . . . . 1 Emergency Access Points 3 | . . . . . . . 2 . . . . . . 1 . . . . . . . . . Terminal Index 3 | . . . . . . . 1 . 1 . . . . 1 . . . . . . . . . Fabricator Index 1 | . . . . . . . . . 1 . . . . . . . . . . . . . . Scanalyzer Index 1 | . . . . . . . 1 . . . . . . . . . . . . . . . . Alert Level 2 | . . . . . . . 1 . . . . . . . . . . . 1 . . . . Unreport Threat 3 | . . . . . . . 2 . . . . . . . . . . . 1 . . . . Locate Traps 4 | . 1 . . . . 1 1 . . . . . . 1 . . . . . . . . . Maintenance Status 1 | . . . . . . . 1 . . . . . . . . . . . . . . . . Recall Investigation 1 | . . . . . . . 1 . . . . . . . . . . . . . . . . Registered Components 1 | . . . . . . . 1 . . . . . . . . . . . . . . . . Zone Layout 8 | . 1 . . . . 1 3 . 2 . . . . 1 . . . . . . . . . Fabricator Hacks 22 | . . . . . . . 5 . 6 . . . . 8 . . . . 3 . . . . Network Status 3 | . . . . . . . 1 . 2 . . . . . . . . . . . . . . Load Schematic 12 | . . . . . . . 3 . 2 . . . . 5 . . . . 2 . . . . Build 7 | . . . . . . . 1 . 2 . . . . 3 . . . . 1 . . . . Repair Station Hacks 21 | . . . . . 1 . 5 . 10 . . . . 5 . . . . . . . . . Scan Component 12 | . . . . . 1 . 2 . 6 . . . . 3 . . . . . . . . . Repair 8 | . . . . . . . 2 . 4 . . . . 2 . . . . . . . . . Refit 1 | . . . . . . . 1 . . . . . . . . . . . . . . . . Recycling Unit Hacks 4 | . . . . . . . . . 4 . . . . . . . . . . . . . . Process 1 | . . . . . . . . . 1 . . . . . . . . . . . . . . Report Inventory 1 | . . . . . . . . . 1 . . . . . . . . . . . . . . Retrieve Matter 2 | . . . . . . . . . 2 . . . . . . . . . . . . . . Scanalyzer 8 | . . . . . . . 6 . 2 . . . . . . . . . . . . . . Insert Component 4 | . . . . . . . 3 . 1 . . . . . . . . . . . . . . Analyze 4 | . . . . . . . 3 . 1 . . . . . . . . . . . . . . Garrison Access Hacks 7 | . . . . . . 1 3 . 1 . . . . 2 . . . . . . . . . Seal Access 7 | . . . . . . 1 3 . 1 . . . . 2 . . . . . . . . . Unauthorized Hacks 43 | . 4 . . . 3 1 16 . 8 . . . . 8 . . . . 1 . . . 2 Terminals 30 | . 2 . . . 2 1 11 . 6 . . . . 6 . . . . . . . . 2 Track 14 | . 1 . . . 1 1 7 . 2 . . . . 1 . . . . . . . . 1 Assimilate 8 | . 1 . . . . . 3 . 1 . . . . 3 . . . . . . . . . Botnet 8 | . . . . . 1 . 1 . 3 . . . . 2 . . . . . . . . 1 Fabricators 8 | . . . . . . . 3 . 2 . . . . 2 . . . . 1 . . . . Recompile 8 | . . . . . . . 3 . 2 . . . . 2 . . . . 1 . . . . Repair Stations . | . . . . . . . . . . . . . . . . . . . . . . . . Recycling Units 5 | . 2 . . . 1 . 2 . . . . . . . . . . . . . . . . Tunnel 5 | . 2 . . . 1 . 2 . . . . . . . . . . . . . . . . Scanalyzers . | . . . . . . . . . . . . . . . . . . . . . . . . Garrison Access . | . . . . . . . . . . . . . . . . . . . . . . . . Data Cores Recovered . | . . . . . . . . . . . . . . . . . . . . . . . . Used . | . . . . . . . . . . . . . . . . . . . . . . . . Hacking Detections 60 | . 5 . . . 2 4 17 . 13 . . . . 12 . . . 1 2 . . . 4 Full Trace Events 6 | . . . . . . . . . 2 . . . . 3 . . . . 1 . . . . Feedback Events 2 | . . . . . . . . . . . . . . 2 . . . . . . . . . Corruption 1 | . . . . . . . . . . . . . . 1 . . . . . . . . . Hackware Fried 1 | . . . . . . . . . . . . . . 1 . . . . . . . . . Feedback Blocked . | . . . . . . . . . . . . . . . . . . . . . . . . Robot Schematics Acquired 8 | . . . . . . . . . . . . 5 . . . . 3 . . . . . . Robots Built 4 | . . . . . . . . . 4 . . . . . . . . . . . . . . Authchips . | . . . . . . . . . . . . . . . . . . . . . . . . Time 250 | . . . . . . . . . 250 . . . . . . . . . . . . . . Total Robot Build Rating 14 | . . . . . . . . . 14 . . . . . . . . . . . . . . Part Schematics Acquired 30 | . . . . . . . 5 . 1 . . 10 . 2 . . 12 . . . . . . Parts Built 6 | . . . . . . . 2 . . . . . . 3 . . . . 1 . . . . Authchips 5 | . . . . . . . 1 . . . . . . 3 . . . . 1 . . . . Time 243 | . . . . . . . 36 . . . . . . 112 . . . . 95 . . . . Total Part Build Rating 26 | . . . . . . . 6 . . . . . . 15 . . . . 5 . . . . Parts Repaired 8 | . . . . . . . 2 . 4 . . . . 2 . . . . . . . . . Time 392 | . . . . . . . 98 . 205 . . . . 89 . . . . . . . . . Parts Recycled . | . . . . . . . . . . . . . . . . . . . . . . . . Recycled Matter 10 | . . . . . . . . . 10 . . . . . . . . . . . . . . Retrieved Matter 10 | . . . . . . . . . 10 . . . . . . . . . . . . . . Retrieved Components . | . . . . . . . . . . . . . . . . . . . . . . . . Parts Scanalyzed 4 | . . . . . . . 3 . 1 . . . . . . . . . . . . . . Part Schematics Acquired 4 | . . . . . . . 3 . 1 . . . . . . . . . . . . . . Parts Damaged . | . . . . . . . . . . . . . . . . . . . . . . . . Bothacking | -11 -10 -10 -10 -9 -8 -8 -7 -7 -7 -7 -7 -7 -6 -6 -6 -6 -6 -5 -5 -5 -5 -4 -4 ------------ Run | Scr Mat Min Exi Min Mat Sto Fac Was Fac Low Low Dat Pro Fac Low Low Zio Pro Fac Upp War Pro Fac Used RIF Installer . | . . . . . . . . . . . . . . . . . . . . . . . . Robots Hacked . | . . . . . . . . . . . . . . . . . . . . . . . . Non-combat . | . . . . . . . . . . . . . . . . . . . . . . . . Combat . | . . . . . . . . . . . . . . . . . . . . . . . . Robot Hacks Applied . | . . . . . . . . . . . . . . . . . . . . . . . . Relay Couplers Released . | . . . . . . . . . . . . . . . . . . . . . . . . Fabnet Peak Effective % . | . . . . . . . . . . . . . . . . . . . . . . . . Robots Rewired . | . . . . . . . . . . . . . . . . . . . . . . . . Allies Hacked . | . . . . . . . . . . . . . . . . . . . . . . . . Hacks Repelled . | . . . . . . . . . . . . . . . . . . . . . . . . Allies | -11 -10 -10 -10 -9 -8 -8 -7 -7 -7 -7 -7 -7 -6 -6 -6 -6 -6 -5 -5 -5 -5 -4 -4 -------- Run | Scr Mat Min Exi Min Mat Sto Fac Was Fac Low Low Dat Pro Fac Low Low Zio Pro Fac Upp War Pro Fac Total Allies 16 | . 1 4 . . . . 3 . 5 . . . 1 2 . . . . . . . . . Largest Group 4 | . 1 4 1 1 . . 2 . 2 . . . 1 1 . . . . . . . . . Highest-Rated Group 96 | . 10 71 16 16 . . 36 . 64 . . . 96 10 . . . . . . . . . Highest-Rated Ally 96 | . 10 31 16 16 . . 26 . 32 . . . 96 10 . . . . . . . . . Total Orders 1 | . . . . . . . . . 1 . . . . . . . . . . . . . . STAY 1 | . . . . . . . . . 1 . . . . . . . . . . . . . . Ally Attacks 37 | . . 9 . 3 . . . . 20 . . . 5 . . . . . . . . . . Total Damage 929 | . . 81 . 17 . . . . 501 . . . 330 . . . . . . . . . . Kills 11 | . . 1 . 1 . . . . 6 . . . 3 . . . . . . . . . . Allies Corrupted . | . . . . . . . . . . . . . . . . . . . . . . . . Allies Melted . | . . . . . . . . . . . . . . . . . . . . . . . . Intel | -11 -10 -10 -10 -9 -8 -8 -7 -7 -7 -7 -7 -7 -6 -6 -6 -6 -6 -5 -5 -5 -5 -4 -4 ------- Run | Scr Mat Min Exi Min Mat Sto Fac Was Fac Low Low Dat Pro Fac Low Low Zio Pro Fac Upp War Pro Fac Robot Analysis Total 7 | . 2 . . . . 1 3 . 1 . . . . . . . . . . . . . . Derelict Logs Recovered 14 | . . 2 . 1 . . . . . . 2 . 2 . 2 1 . 1 . 3 . . . Drone Launches . | . . . . . . . . . . . . . . . . . . . . . . . . Drone Recoveries . | . . . . . . . . . . . . . . . . . . . . . . . . Exploration | -11 -10 -10 -10 -9 -8 -8 -7 -7 -7 -7 -7 -7 -6 -6 -6 -6 -6 -5 -5 -5 -5 -4 -4 ------------- Run | Scr Mat Min Exi Min Mat Sto Fac Was Fac Low Low Dat Pro Fac Low Low Zio Pro Fac Upp War Pro Fac Turns Passed 12435 | . 1042 1228 215 384 2116 1250 1030 34 1177 223 108 20 176 1225 91 84 267 585 338 72 193 308 269 Spaces Moved 15153 | 1 553 740 135 195 647 287 2371 117 1982 466 270 76 339 2223 216 298 876 1037 556 211 580 560 417 Core 148 | . . . . . . 3 . . . . . . . . . . . . . . . . 145 Treads 2166 | . 512 740 135 182 357 240 . . . . . . . . . . . . . . . . . Legs 373 | 1 41 . . . 290 41 . . . . . . . . . . . . . . . . . Wheels 13 | . . . . 13 . . . . . . . . . . . . . . . . . . . Hover 30 | . . . . . . . . . . . . . . . . . . . . . . . 30 Flight 12423 | . . . . . . 3 2371 117 1982 466 270 76 339 2223 216 298 876 1037 556 211 580 560 242 Fastest Speed 24 | 120 120 160 160 115 120 99 26 26 26 26 26 26 26 24 27 27 27 27 27 30 30 30 35 Average Speed 56 | 120 159 160 160 157 228 339 26 26 26 27 26 26 26 24 27 27 27 27 29 30 30 31 51 Slowest Speed 1700 | 120 190 160 160 240 540 1700 97 26 29 94 26 26 94 98 27 27 27 27 30 30 30 35 200 Overloaded Moves . | . . . . . . . . . . . . . . . . . . . . . . . . Propulsion Burnouts . | . . . . . . . . . . . . . . . . . . . . . . . . Robots Hopped 102 | . . . . . . . 30 . 23 . . . . 24 . . . 1 5 1 . 12 6 Cave-ins Triggered . | . . . . . . . . . . . . . . . . . . . . . . . . Exploration Rate (%) 52 | 2 78 99 49 42 55 53 58 77 43 64 46 68 57 37 39 48 81 65 8 44 70 76 9 Regions Visited 23 Branch Regions 15 Pre-discovered Areas 10 | . 2 . 1 . 1 1 2 . . . . 1 . . 1 . 1 . . . . . . Known Exits Taken 15 | . . . . . 1 1 . . 1 1 1 1 1 1 1 1 1 1 1 . 1 1 . Unknown Exits Taken 6 | 1 1 1 1 1 . . . . . . . . . . . . . . . 1 . . . Scrap Searched 19 | . . 1 . 2 . . . . . 2 2 . . . 2 2 2 1 . 2 . 3 . Spaces Dug 183 | . . . . 11 . . 28 . 40 8 5 . 9 40 2 . . 17 13 . . 8 2 Terrain Destroyed 352 | . 15 9 . 50 8 6 45 . 40 39 5 . 11 41 2 . . 17 53 . . 8 3 Melee 103 | . . . . . . . 28 . 34 1 . . . 23 1 . . 3 12 . . 1 . Projectile 79 | . . . . . . 6 . . 6 7 5 . 11 18 1 . . 14 1 . . 7 3 AOE 170 | . 15 9 . 50 8 . 17 . . 31 . . . . . . . . 40 . . . . Terrain Rammed . | . . . . . . . . . . . . . . . . . . . . . . . . Walls Destroyed . | . . . . . . . . . . . . . . . . . . . . . . . . Machines Disabled . | . . . . . . . . . . . . . . . . . . . . . . . . Actions | -11 -10 -10 -10 -9 -8 -8 -7 -7 -7 -7 -7 -7 -6 -6 -6 -6 -6 -5 -5 -5 -5 -4 -4 --------- Run | Scr Mat Min Exi Min Mat Sto Fac Was Fac Low Low Dat Pro Fac Low Low Zio Pro Fac Upp War Pro Fac Total 18106 | . 637 776 134 238 1003 486 2667 120 2524 544 304 75 414 2798 240 301 902 1311 692 215 599 670 456 Wait 1954 | . 34 6 . 8 63 68 220 2 443 43 23 . 65 493 13 . 6 242 104 2 12 93 14 Move 14937 | . 552 739 134 194 646 286 2314 116 1937 465 269 75 338 2174 215 297 875 1034 547 208 579 538 405 Hop 92 | . . . . . . . 27 . 21 . . . . 24 . . . 1 3 1 . 9 6 Pick Up 131 | . 3 10 . 4 50 10 15 1 10 1 1 . . 7 3 2 6 2 2 1 1 1 1 Fast Attach 70 | . 2 . . 1 17 8 3 . 6 . . . . 16 . . 1 . 2 . 2 . 12 Attach 85 | . . . . 9 17 8 5 . 6 10 2 . 1 9 2 . . 3 4 . . 6 3 Detach 52 | . 1 . . 1 7 3 3 . 5 7 3 . 1 9 . . . 2 2 . 2 3 3 Swap 100 | . 6 6 . 1 16 14 15 . 15 2 . . . 6 3 . 4 1 3 2 . 6 . Drop 121 | . . 7 . . 32 28 12 1 6 1 1 . . 9 . 2 7 1 2 . 3 4 5 Fire 336 | . 36 6 . 20 150 41 2 . 6 10 5 . 9 19 1 . . 14 2 . . 8 7 Melee 198 | . . . . . . 18 51 . 51 5 . . . 32 3 . 3 11 21 1 . 2 . Ram . | . . . . . . . . . . . . . . . . . . . . . . . . Kick 2 | . . . . . 2 . . . . . . . . . . . . . . . . . . Crush 8 | . 3 . . . 3 2 . . . . . . . . . . . . . . . . . Escape Stasis 18 | . . . . . . . . . 18 . . . . . . . . . . . . . . Rewire 2 | . . 2 . . . . . . . . . . . . . . . . . . . . . Trap . | . . . . . . . . . . . . . . . . . . . . . . . . Miscellaneous . | . . . . . . . . . . . . . . . . . . . . . . . . Route ------- -11/Scrapyard -10/Materials (discovered 3 exits: [*Mat x2] / [*Min]) -10/Mines (discovered 3 exits: [*Mat x2] / *Exi) -10/Exiles -9/Mines (discovered 2 exits: *Mat x2) -8/Materials -8/Storage -7/Factory (discovered 3 exits: *Fac / *Low x2) -7/Waste -7/Factory (discovered 3 exits: *Fac / *Low x2) -7/Lower Caves (discovered 2 exits: *Low / *Zio) -7/Lower Caves (discovered 2 exits: *Fac / *Dat) -7/Data Miner -6/Proximity Caves -6/Factory (discovered 4 exits: *Fac x2 / *Low x2) -6/Lower Caves -6/Lower Caves -6/Zion -5/Proximity Caves -5/Factory -5/Upper Caves (discovered 2 exits: *Upp / *War) -5/Warlord -4/Proximity Caves -4/Factory (discovered 6 exits: *Res / Upp x2 / Ext x2 / Arm) History --------- Turn | Location | Event 1 | -11/Scrapyard | Discovered new exit (range 0) 1 | -11/Scrapyard | Entered Materials 91 | -10/Materials | Discovered new exit (range 4) 294 | -10/Materials | Discovered new exit (range 13) 300 | -10/Materials | Build established: Mutant 360 | -10/Materials | Central database locked down 1032 | -10/Materials | Discovered new exit (range 7) 1043 | -10/Materials | Entered Mines 1169 | -10/Mines | Learned 2 Materials zone layouts 1174 | -10/Mines | Learned Materials security intel 1199 | -10/Mines | Deemed a non-threat by the Exiles lab entrance 1199 | -10/Mines | Discovered new exit (range 5) 1228 | -10/Mines | Assisted by bots powering up and referring to "LRC-V3" 1250 | -10/Mines | Joined a pair of Derelicts in attacking an 0b10 outpost 1576 | -10/Mines | Discovered new exit (range 14) 1628 | -10/Mines | Received a Mining Laser from a helpful Derelict 1786 | -10/Mines | Received a Rocket Launcher from a helpful Derelict 2171 | -10/Mines | Discovered new exit (range 5) 2271 | -10/Mines | Entered Exiles 2271 | -10/Exiles | Accompanied by 1 ally 2313 | -10/Exiles | Met 8R-AWN 2339 | -10/Exiles | Met EX-HEX 2398 | -10/Exiles | Met EX-DEC 2409 | -10/Exiles | Learned location of Zion (-6) 2467 | -10/Exiles | Discovered new exit (range 14) 2486 | -10/Exiles | Entered Mines 2486 | -9/Mines | Accompanied by 1 ally 2502 | -9/Mines | Assembled infested the area 2507 | -9/Mines | Assisted by a Guerilla fighting off Assembled 2513 | -9/Mines | Learned Materials emergency access door positions 2567 | -9/Mines | Core integrity fell below 50% 2583 | -9/Mines | Destroyed 9 combat bots 2585 | -9/Mines | Core integrity fell below 20% 2633 | -9/Mines | Lost 8 parts (1p2n2u3w) 2774 | -9/Mines | Discovered new exit (range 6) 2818 | -9/Mines | Discovered new exit (range 10) 2870 | -9/Mines | Entered Materials 2870 | -8/Materials | Evolved 4 slots: Propulsion x1, Utility x3 3022 | -8/Materials | Lost 4 parts (1p1n1u1w) 3292 | -8/Materials | Build established: Scavenger-Mutant 4053 | -8/Materials | Lost 3 parts (3n) 4450 | -8/Materials | Lost 5 parts (2n1u2w) 4897 | -8/Materials | Discovered new exit (range 15) 4939 | -8/Materials | Identified exit to Storage 4986 | -8/Materials | Entered Storage 5799 | -8/Storage | Core integrity fell below 50% 5827 | -8/Storage | Lost 4 parts (3n1u) 6058 | -8/Storage | Build established: Mutant 6119 | -8/Storage | Discovered new exit (range 10) 6203 | -8/Storage | Identified exit to Factory 6236 | -8/Storage | Entered Factory 6236 | -7/Factory | Evolved 2 slots: Propulsion x1, Utility x1 6390 | -7/Factory | Identified exit to Lower Caves 6542 | -7/Factory | Discovered new exit (range 13) 6636 | -7/Factory | Search patrols dispatched 6706 | -7/Factory | Build established: Hacker-Sprinter 6761 | -7/Factory | Fabricated Imp. Signal Interpreter (x2) 6873 | -7/Factory | Central database locked down 6997 | -7/Factory | Repaired Lgt. Deuterium Engine 7059 | -7/Factory | Repaired Imp. VTOL Module? 7266 | -7/Factory | Manually triggered Chute Trap 7266 | -7/Factory | Sucked down chute 7266 | -7/Factory | Entered Waste 7273 | -7/Waste | Spotted C-40 Crusher 7273 | -7/Waste | Spotted C-40 Crusher 7281 | -7/Waste | EMP discharged 7286 | -7/Waste | Spotted C-40 Crusher 7287 | -7/Waste | Spotted C-40 Crusher 7287 | -7/Waste | Spotted C-40 Crusher 7294 | -7/Waste | Spotted C-40 Crusher 7298 | -7/Waste | Discovered new exit (range 10) 7300 | -7/Waste | Identified exit to Factory 7300 | -7/Waste | Entered Factory 7694 | -7/Factory | Fabricated Y-54 Guardian (x2) 7731 | -7/Factory | Repaired Lgt. Deuterium Engine 7855 | -7/Factory | Repaired Broken Adv. Plasma Cannon 7984 | -7/Factory | Repaired Imp. Sensor Array 8055 | -7/Factory | Repaired Imp. Cesium-ion Thruster 8162 | -7/Factory | Discovered new exit (range 4) 8163 | -7/Factory | Identified exit to Factory 8178 | -7/Factory | Fabricated H-55 Commando? 8387 | -7/Factory | Lost 3 parts (1p1n1u) 8477 | -7/Factory | Entered Lower Caves 8514 | -7/Lower Caves | A Derelict revealed a hidden shortcut to a safe place 8517 | -7/Lower Caves | Identified exit to Zion 8661 | -7/Lower Caves | Build established: Sprinter 8691 | -7/Lower Caves | Discovered new exit (range 15) 8696 | -7/Lower Caves | Identified exit to Lower Caves 8700 | -7/Lower Caves | Entered another Lower Caves area 8709 | -7/Lower Caves | Learned Factory interactive machine intel 8718 | -7/Lower Caves | Discovered exit to Factory (range 7) 8803 | -7/Lower Caves | Learned Factory garrison access intel 8803 | -7/Lower Caves | Discovered new exit (range 13) 8808 | -7/Lower Caves | Identified exit to Data Miner 8808 | -7/Lower Caves | Entered Data Miner 8808 | -7/Data Miner | Discovered new exit (range 6) 8813 | -7/Data Miner | Met Data Miner 8820 | -7/Data Miner | Learned location of Section 7 (-2) 8820 | -7/Data Miner | Acquired the access code to Warlord's prototype stash 8822 | -7/Data Miner | Received God Mode back door access code from Data Miner 8828 | -7/Data Miner | Identified exit to Proximity Caves 8828 | -7/Data Miner | Entered Proximity Caves 8852 | -6/Proximity Caves | Learned Factory emergency access door positions 8871 | -6/Proximity Caves | Escorted by Enhanced Grunt 9001 | -6/Proximity Caves | Discovered exit to Factory (range 15) 9004 | -6/Proximity Caves | Entered Factory 9004 | -6/Factory | Evolved 2 slots: Propulsion x1, Utility x1 9005 | -6/Factory | Identified exit to Lower Caves 9007 | -6/Factory | Loaded intel: 51 interactive machine locations 9008 | -6/Factory | Loaded intel: 4 garrison access locations 9136 | -6/Factory | System Shield fried by hacking feedback 9161 | -6/Factory | Incoming investigation squad redirected 9170 | -6/Factory | Spotted B-75 Beast 9225 | -6/Factory | Fabricated Biomechanical Wings? 9279 | -6/Factory | Incoming investigation squad redirected 9371 | -6/Factory | Incoming investigation squad redirected 9459 | -6/Factory | Discovered exit to Lower Caves (range 13) 9480 | -6/Factory | Repaired Imp. Light Armor Plating 9579 | -6/Factory | Repaired Imp. Cesium-ion Thruster 9623 | -6/Factory | Discovered new exit (range 6) 9624 | -6/Factory | Identified exit to Factory 9845 | -6/Factory | Discovered exit to Factory (range 12) 9975 | -6/Factory | Fabricated Imp. Hacking Suite (x1) 10017 | -6/Factory | Fabricated Imp. Hacking Suite (x1) 10229 | -6/Factory | Entered Lower Caves 10266 | -6/Lower Caves | Build established: Hacker-Sprinter 10269 | -6/Lower Caves | Learned location of Extension (-4) 10275 | -6/Lower Caves | Encountered a Warlord checkpoint 10276 | -6/Lower Caves | Spotted B-75 Beast 10296 | -6/Lower Caves | Identified exit to Lower Caves 10320 | -6/Lower Caves | Entered another Lower Caves area 10325 | -6/Lower Caves | Encountered a Warlord checkpoint 10400 | -6/Lower Caves | Attracted the attention of an 0b10 checkpoint 10404 | -6/Lower Caves | Entered Zion 10431 | -6/Zion | System corruption cleaned by Quarantine Array 10437 | -6/Zion | Discovered new exit (range 8) 10439 | -6/Zion | Identified exit to Proximity Caves 10480 | -6/Zion | Found CR-A16's Pointy Stick 10513 | -6/Zion | Given the Hacking Drone Bay 10586 | -6/Zion | Learned Factory fabricator intel 10652 | -6/Zion | Found Prototype Special Weapon 10653 | -6/Zion | Found Prototype Special Weapon 10654 | -6/Zion | Identified RU-N14's Throwing Claymores (x2) 10659 | -6/Zion | Found RU-N14's Throwing Claymores 10671 | -6/Zion | Entered Proximity Caves 10719 | -5/Proximity Caves | Spotted B-75 Beast 10750 | -5/Proximity Caves | Learned Factory trap positions 10828 | -5/Proximity Caves | Entered a huge 0b10 base via the front door 11247 | -5/Proximity Caves | Discovered exit to Factory (range 5) 11256 | -5/Proximity Caves | Entered Factory 11256 | -5/Factory | Evolved 2 slots: Utility x2 11257 | -5/Factory | Loaded intel: 106 trap records 11258 | -5/Factory | Loaded intel: 6 fabricator locations 11385 | -5/Factory | Fabricated Imp. Hacking Suite? 11451 | -5/Factory | Discovered new exit (range 6) 11453 | -5/Factory | Identified exit to Upper Caves 11487 | -5/Factory | Incoming investigation squad redirected 11594 | -5/Factory | Entered Upper Caves 11600 | -5/Upper Caves | Learned Factory garrison access intel 11601 | -5/Upper Caves | Learned Factory terminal intel 11615 | -5/Upper Caves | Learned 8 Factory zone layouts 11663 | -5/Upper Caves | Discovered new exit (range 6) 11666 | -5/Upper Caves | A Derelict revealed a hidden shortcut to "reach the base" 11666 | -5/Upper Caves | Identified exit to Upper Caves 11666 | -5/Upper Caves | Entered Warlord 11690 | -5/Warlord | Received a Watcher feed algorithm from an ecstatic Tinkerer 11770 | -5/Warlord | Visited the Vortex Lab 11772 | -5/Warlord | Found Prototype Energy Cannon 11772 | -5/Warlord | Identified Vortex Cannon 11775 | -5/Warlord | Found Prototype Energy Gun 11775 | -5/Warlord | Identified Vortex Rifle 11782 | -5/Warlord | Warlord's base attacked by MAIN.C 11787 | -5/Warlord | Met Warlord 11829 | -5/Warlord | Opened side exit 11857 | -5/Warlord | Discovered new exit (range 8) 11858 | -5/Warlord | Identified exit to Proximity Caves 11859 | -5/Warlord | Entered Proximity Caves 11966 | -4/Proximity Caves | Found Alien Artifact 12130 | -4/Proximity Caves | Attracted the attention of an 0b10 checkpoint 12160 | -4/Proximity Caves | Lost 10 parts (2p2n6u) 12164 | -4/Proximity Caves | Discovered new exit (range 8) 12167 | -4/Proximity Caves | Identified exit to Factory 12167 | -4/Proximity Caves | Entered Factory 12167 | -4/Factory | Evolved 2 slots: Power x1, Propulsion x1 12168 | -4/Factory | Identified exit to Extension 12169 | -4/Factory | Loaded intel: 28 terminal locations 12170 | -4/Factory | Loaded intel: 4 garrison access locations 12181 | -4/Factory | Discovered new exit (range 15) 12186 | -4/Factory | Identified exit to Upper Caves 12186 | -4/Factory | Identified exit to Armory 12210 | -4/Factory | Identified exit to Research 12362 | -4/Factory | Build established: Hacker-Mutant 12392 | -4/Factory | Found Quantum Capacitor 12436 | -4/Factory | Self-destructed Last Messages --------------- Awaiting botnet instructions. 12278_ Imp. VTOL Module destroyed. 12278_ Dropped Lgt. Ion Engine. 12291_ ALERT: Security rotation in progress. 12313_ Acquired Imp. Gyrokinetic Inverter. 12382_ Acquired Imp. Antigrav System. 12383_ Dropped Imp. Gyrokinetic Inverter. 12384_ Acquired Imp. Gyrokinetic Inverter. 12392_ Acquired Quantum Capacitor. 12399_ Structural Scanner destroyed. 12417_ ALERT: Rogue bot located, Programmers report to Factory Zone 6M. 12419_ Acquired Hacking Suite. 12419_ ALERT: All DSF locations entering lockdown mode. 12423_ Acquired KE Penetrator. 12430_ Slug penetrates Wall. 12433_ Slug penetrates P-70 Sage. 12435_ Fusion Modulator explodes. 12435_ Slug penetrates Nuclear Reactor. 12435_ Penetrated by Slug. 12436_ Slug penetrates Earth. Map ----- +----------------------------------------------------+ | ???????????????????????????????????????## | | ???????????????????????????????????????## ! | | ???????????????????????????????????????## | | ???????????????????????????????????????## | | ???????????????????????????????????????## | | ?????????????????????"T"???????????????## | | ?????????????????????"""???????????????## | | ???????????????????????????????????????## | | ???????????????????????????????????????##########+ | | ???????????????????????????????????????######## | | ??????????????? ???????? ??????????????????## | | ?????????????" ??? ???? ??????????????????## | | ?????????????" ? ??? ?????????????????## | | ????????????"" ? """ "???#??############# | | ???????#????? ?? """ """ #??################ | | ???????? """ ?? """ """ #??## ## | | ????????? """ ??? #??## ## | | ?????????? """ #?? #??## ## | | ??????????? #??? #??## ## | | ???????????? = #??? ##?##* ## | | ????????????? #???#;;;;;;;;;#### ## | | ??????????????# #####;;;;;;;;; ## ## | | ??????????????# # [ ; ### * ## | | ??????????????# #u ;# # ## | | ??????????????# /p [ ; ## ## | | ??????????????# # [@ ;#?## ## | | ?????????????## # [[ ; ### ## | | ?????????????## #####;;;;;;;;;##########+####### | | ???????????? # ####;;;;;;;;;######## ##### | | ???????????? # h hk T | | ???????????? # "" | | ???????????? # ^ | | ???????????? # ##########+########## ##### | | ?????????????######## ########## ###### | | ???????????????????## ##?????### # | | ???????????????????## ##??????## # | | ???????????????????## ########## + !! | | ???????????????????## ########## # !!! | | ???????????????????## # === # # !! | | ???????????????????## # [ == # # | | ???????????????????## # == # # | | ??????"""??????????## # # ###### | | ???????T"??????????## # # ###### | | ??????"""??????????## # + ###### | | ???????????????????## + # % | | ???????????????????## # # | | ???????????????????## # # | | ???????????????????## ###########+####### | | ???????????????????#################### ### | | ???????????????????##############???????????????? | +----------------------------------------------------+ Best States ------------- Heat Dissipation 74 Energy Generation 18 Energy Capacity 290 Matter Stores 300 Matter Capacity 300 Sight Range 20 Robot Scan Range 16 Terrain Scan Density 10 Jamming Range 12 Additional Mass Support 9 Armor Coverage 225 Core Shielding 20 Power Shielding 33 Evasion (%) 74 Targeting Accuracy 24 Melee Accuracy 6 Target Analysis 5 Recoil Reduction 3 Offensive Hacking 47 Defensive Hacking 11 Authchip Count 3 Item Schematics ----------------- Imp. Signal Interpreter | -7/Factory | Hacked Imp. Cesium-ion Thruster | -7/Factory | Scanalyzed Imp. Sensor Array | -7/Factory | Scanalyzed Transmission Jammer | -7/Factory | Scanalyzed Adv. Plasma Cannon | -7/Factory | Hacked Hvy. Rocket Launcher | -7/Factory | Scanalyzed Combat Drone Bay | -7/Data Miner | Free Lgt. Regenerative Plating | -7/Data Miner | Free Thermal Defense Suite | -7/Data Miner | Free Force Rifle | -7/Data Miner | Free Biomechanical Wings | -7/Data Miner | Free Linear Gravjet | -7/Data Miner | Free Adv. Cooling System | -7/Data Miner | Free Imp. Plasma Cutter | -7/Data Miner | Free Thermic Laser | -7/Data Miner | Free Hvy. Treads | -7/Data Miner | Free Adv. Sensor Array | -6/Factory | Hacked Imp. Hacking Suite | -6/Factory | Hacked Remote Shield | -6/Zion | Archive Imp. Thermal Shield | -6/Zion | Archive Remote Force Field | -6/Zion | Archive Lgt. Fission Core | -6/Zion | Archive Imp. Kinecellerator | -6/Zion | Archive Adv. Focal Shield | -6/Zion | Archive Imp. Antigrav System | -6/Zion | Archive Beamcaster | -6/Zion | Archive Wave Gun | -6/Zion | Archive Drone Bay | -6/Zion | Archive Imp. Recalibrator | -6/Zion | Archive Imp. Medium Treads | -6/Zion | Archive Robot Schematics ------------------ L-41 Fighter | -7/Data Miner | Free C-17 Slicer | -7/Data Miner | Free R-10 Processor | -7/Data Miner | Free S-27 Virus | -7/Data Miner | Free B-48 Gladiator | -7/Data Miner | Free W-25 Informer | -6/Zion | Archive K-01 Serf | -6/Zion | Archive L-61 Swordsman | -6/Zion | Archive Fabricated ------------ Imp. Signal Interpreter | x2 | -7/Factory | Authchip Y-54 Guardian | x2 | -7/Factory | Preloaded H-55 Commando | x2 | -7/Factory | Preloaded Biomechanical Wings | x1 | -6/Factory | Authchip Imp. Hacking Suite | x1 | -6/Factory | Authchip Imp. Hacking Suite | x1 | -6/Factory | Authchip Imp. Hacking Suite | x1 | -5/Factory | Authchip Alien Tech Used ----------------- None Achievements -------------- None Challenges ------------ None Game ------ Seed ReactiveSubatomicMediator Manual? 0 Play Time 02:45:30 Cumulative 127.0 hours Start 2022.09.30 @ 17:30:42 End 2022.09.30 @ 20:15:57 Sessions 1 Manual Loads 0 Difficulty Rogue Special Mode None Game No. 151 Rogue 151 Adventurer 0 Explorer 0 Win Type - Total 1 Types 1/0/0/0/0/0/0/0/0 Lore% 66 Gallery% 71 Achievement% 55 Wizard Run 0 Options --------- ASCII 0 Keyboard 0 Movement Numpad Keybinds 0 Fullscreen 2 Font 18/SmallcapsGlow Map View 76x50 Tactical HUD 1 Map Filters NONE Filters NONE Steam 1 RUN: 319651c0-9675-4d77-8652-3b3add1eb226